bitfinex-derivatives/quotes_BNBF0:USTF0_20250315
["timestamp","ask_amount","ask_price","bid_price","bid_amount"]
[1742017484539,0.29301932,594.62,593.56,2.34]
[1742017484739,0.33630401,594.7,593.56,2.34]
[1742017484938,0.3073832,594.69,593.56,2.34]
[1742017485136,0.33631532,594.68,593.56,2.34]
[1742017485336,0.3073832,594.67,593.56,2.34]
[1742017485932,0.3073832,594.67,593.56,3.3]
[1742017486134,0.29301439,594.66,593.56,3.3]
[1742017486335,0.3073832,594.65,593.56,3.3]
[1742017486536,0.3073832,594.65,593.56,3.934]
[1742017487241,0.3073832,594.67,593.56,3.934]
[1742017487540,0.29301685,594.64,593.56,3.934]
[1742017487737,0.3073832,594.63,593.56,3.934]
[1742017489738,0.33634926,594.62,593.56,3.934]
[1742017489943,0.3073832,594.61,593.56,3.934]
[1742017490135,0.64373812,594.61,593.56,3.934]
[1742017490340,0.3073832,594.6,593.56,3.934]
[1742017492040,0.62939275,594.61,593.56,3.934]
[1742017493141,0.33635492,594.61,593.56,3.934]
[1742017493542,0.29304029,594.6,593.56,3.934]
[1742017495244,0.62940086,594.6,593.56,3.934]
[1742017495438,0.33636623,594.59,593.56,3.934]
[1742017496442,0.29304646,594.58,593.56,3.934]
[1742017499038,0.33636623,594.59,593.56,3.934]
[1742017499243,0.2930477,594.57,593.56,3.934]
[1742017502144,0.33636623,594.59,593.56,3.934]
[1742017502542,0.2930477,594.56,593.56,3.934]
[1742017504341,0.2930477,594.56,593.56,4.988]
[1742017504945,0.30719226,594.55,593.56,4.988]
[1742017505347,0.29303536,594.55,593.56,4.988]
[1742017505543,0.30719226,594.54,593.56,4.988]
[1742017508042,0.33636623,594.59,593.56,4.988]
[1742017508243,0.30704682,594.58,593.56,4.988]
[1742017508446,0.29305263,594.53,593.56,4.988]
[1742017509351,0.30709191,594.52,593.56,4.988]
[1742017510143,0.29305263,594.53,593.56,4.988]
[1742017511045,0.30710596,594.52,593.56,4.988]
[1742017511248,0.30710596,594.58,593.56,4.988]
[1742017511446,0.2930477,594.52,593.56,4.988]
[1742017512249,0.30708542,594.51,593.56,4.988]
[1742017512650,0.2930477,594.52,593.56,4.988]
[1742017512851,0.30707468,594.51,593.56,4.988]
[1742017513453,0.2930477,594.52,593.56,4.988]
[1742017514150,0.33636623,594.59,593.56,4.988]
[1742017514453,0.2930477,594.51,593.56,4.988]
[1742017514653,0.33636623,594.59,593.56,4.988]
[1742017514849,0.30711984,594.58,593.56,4.988]
[1742017515254,0.64349173,594.58,593.56,4.988]
[1742017515553,0.30711984,594.57,593.56,4.988]
[1742017516152,0.33637189,594.58,593.56,4.988]
[1742017516352,0.30711555,594.57,593.56,4.988]
[1742017517255,0.29304893,594.56,593.56,4.988]
[1742017517448,0.30711555,594.55,593.56,4.988]
[1742017518048,0.29304893,594.56,593.56,4.988]
[1742017518251,0.30712323,594.55,593.56,4.988]
[1742017520255,0.30712323,594.54,593.56,4.988]
[1742017520454,0.2930514,594.54,593.56,4.988]
[1742017520659,0.30712323,594.53,593.56,4.988]
[1742017523362,0.30712323,594.57,593.56,4.988]
[1742017523662,0.29305387,594.52,593.56,4.988]
[1742017524157,0.30722842,594.51,593.56,4.988]
[1742017524358,0.29305387,594.52,593.56,4.988]
[1742017526158,0.30722472,594.51,593.56,4.988]
[1742017526360,0.29304893,594.51,593.56,4.988]
[1742017532171,0.33637189,594.58,593.56,4.988]
[1742017532372,0.29303166,594.5,593.56,4.988]
[1742017532577,0.33637189,594.58,593.56,4.988]
[1742017532772,0.30723847,594.57,593.56,4.988]
[1742017534379,0.29303166,594.56,593.56,4.988]
[1742017535178,0.33637189,594.58,593.56,4.988]
[1742017535574,0.29303166,594.55,593.56,4.988]
[1742017538173,0.33637189,594.58,593.56,4.988]
[1742017538377,0.29303166,594.54,593.56,4.988]
[1742017541082,0.33637189,594.58,593.56,4.988]
[1742017541473,0.29303166,594.53,593.56,4.988]
[1742017544177,0.33640018,594.53,593.56,4.988]
[1742017544383,0.33640584,594.52,593.56,4.988]
[1742017544577,0.30732265,594.51,593.56,4.988]
[1742017544778,0.33641715,594.5,593.56,4.988]
[1742017547684,0.29306867,594.49,593.56,4.988]
[1742017548183,0.30728447,594.48,593.56,4.988]
[1742017548583,0.29306867,594.49,593.56,4.988]
[1742017548887,0.30727697,594.48,593.56,4.988]
[1742017549584,0.29306867,594.49,593.56,4.988]
[1742017549981,0.30728043,594.48,593.56,4.988]
[1742017550379,0.30728043,594.49,593.56,4.988]
[1742017550682,0.29307238,594.47,593.56,4.988]
[1742017552084,0.30727644,594.46,593.56,4.988]
[1742017552782,0.29307238,594.47,593.56,4.988]
[1742017553287,0.33641715,594.5,593.56,4.988]
[1742017553484,0.29307114,594.46,593.56,4.988]
[1742017556186,0.33641715,594.5,593.56,4.988]
[1742017556383,0.30735189,594.49,593.56,4.988]
[1742017556586,0.29307114,594.45,593.56,4.988]
[1742017559188,0.33641715,594.5,593.56,4.988]
[1742017559389,0.29307114,594.44,593.56,4.988]
[1742017560791,0.30721814,594.43,593.56,4.988]
[1742017562293,0.30721814,594.49,593.56,4.988]
[1742017562490,0.29309582,594.42,593.56,4.988]
[1742017562695,0.33642847,594.48,593.56,4.988]
[1742017562890,0.30742986,594.47,593.56,4.988]
[1742017563091,0.33643979,594.46,593.56,4.988]
[1742017563890,0.29301068,594.45,593.56,4.988]
[1742017564693,0.30768262,594.44,593.56,4.988]
[1742017565495,0.29309459,594.43,593.56,4.988]
[1742017565894,0.30768262,594.42,593.56,4.988]
[1742017566595,0.30772104,594.41,593.56,4.988]
[1742017566795,0.29309459,594.43,593.56,4.988]
[1742017566796,0.30772104,594.4,593.56,4.988]
[1742017567095,0.30772104,594.39,593.56,4.988]
[1742017567297,0.30772104,594.42,593.56,4.988]
[1742017567496,0.30772104,594.41,593.56,4.988]
[1742017567690,0.30772104,594.4,593.56,4.988]
[1742017567891,0.30772104,594.42,593.56,4.988]
[1742017568295,0.30772104,594.45,593.56,4.988]
[1742017568491,0.60082057,594.41,593.56,4.988]
[1742017568691,0.30772104,594.4,593.56,4.988]
[1742017570398,0.30775826,594.39,593.56,4.988]
[1742017570598,0.30775826,594.4,593.56,4.988]
[1742017570794,0.30775826,594.39,593.56,4.988]
[1742017571101,0.30775826,594.38,593.56,4.988]
[1742017571294,0.29310446,594.38,593.56,4.988]
[1742017571495,0.30775826,594.37,593.56,4.988]
[1742017571898,0.29310446,594.38,593.56,4.988]
[1742017574201,0.33644545,594.45,593.56,4.988]
[1742017574401,0.29309706,594.37,593.56,4.988]
[1742017574598,0.33644545,594.45,593.56,4.988]
[1742017576301,0.29300698,594.44,593.56,4.988]
[1742017577095,0.33644545,594.45,593.56,4.988]
[1742017577402,0.29307731,594.43,593.56,4.988]
[1742017580102,0.33644545,594.45,593.56,4.988]
[1742017582006,0.30799318,594.44,593.56,4.988]
[1742017582306,0.60095206,594.44,593.56,4.988]
[1742017582606,0.29295888,594.44,593.56,4.988]
[1742017583107,0.33644545,594.45,593.56,4.988]
[1742017583305,0.29306991,594.43,593.56,4.988]
[1742017583806,0.308005,594.42,593.56,4.988]
[1742017586008,0.29306991,594.43,593.56,4.988]
[1742017586207,0.33644545,594.45,593.56,4.988]
[1742017586408,0.29306991,594.42,593.56,4.988]
[1742017588609,0.33644545,594.45,593.56,4.988]
[1742017593413,5.81361,595.41,593.56,4.988]
[1742017593712,0.33591427,595.39,593.56,4.988]
[1742017593911,0.30796144,595.38,593.56,4.988]
[1742017594113,0.3359312,595.36,593.56,4.988]
[1742017594317,0.30796144,595.35,593.56,4.988]
[1742017594609,0.33594812,595.33,593.56,4.988]
[1742017594807,0.30796144,595.32,593.56,4.988]
[1742017595013,0.33596505,595.3,593.56,4.988]
[1742017595213,0.30796144,595.29,593.56,4.988]
[1742017595414,0.33598199,595.27,593.56,4.988]
[1742017595715,0.30796144,595.26,593.56,4.988]
[1742017595914,0.33599892,595.24,593.56,4.988]
[1742017596114,0.30795103,595.23,593.56,4.988]
[1742017596315,0.33601585,595.21,593.56,5.32494992]
[1742017596516,0.30795103,595.2,593.56,5.32494992]
[1742017596716,0.33603279,595.18,593.56,5.32494992]
[1742017597015,0.30795103,595.17,593.56,5.32494992]
[1742017597216,0.33604973,595.15,593.56,5.32494992]
[1742017597418,0.3079097,595.14,593.56,5.32494992]
[1742017597613,0.33606667,595.12,593.56,5.32494992]
[1742017597811,0.3079097,595.11,593.56,5.32494992]
[1742017598012,0.33608361,595.09,593.56,5.32494992]
[1742017598216,0.3079097,595.08,593.56,5.32494992]
[1742017598415,0.33610056,595.06,593.56,5.32494992]
[1742017598617,0.3079097,595.05,593.56,5.32494992]
[1742017598818,0.3361175,595.03,593.56,5.32494992]
[1742017599118,0.3079097,595.02,593.56,5.32494992]
[1742017599310,0.33613445,595.0,593.56,5.32494992]
[1742017599516,0.3079097,594.99,593.56,5.32494992]
[1742017599715,0.3361514,594.97,593.56,5.32494992]
[1742017600022,0.3079097,594.96,593.56,5.32494992]
[1742017600221,0.3361627,594.95,593.56,5.32494992]
[1742017600417,0.3079097,594.94,593.56,5.32494992]
[1742017600622,0.336174,594.93,593.56,5.32494992]
[1742017600917,0.3079097,594.92,593.56,5.32494992]
[1742017601222,0.3361853,594.91,593.56,5.32494992]
[1742017601516,0.3079097,594.9,593.56,5.32494992]
[1742017601715,0.3361966,594.89,593.56,5.32494992]
[1742017601913,0.3079097,594.88,593.56,5.32494992]
[1742017602116,0.33620791,594.87,593.56,5.32494992]
[1742017602420,0.3079097,594.86,593.56,5.32494992]
[1742017602622,0.33621921,594.85,593.56,5.32494992]
[1742017602822,0.3079097,594.84,593.56,5.32494992]
[1742017603021,0.33623051,594.83,593.56,5.32494992]
[1742017603216,0.3079097,594.82,593.56,5.32494992]
[1742017603426,0.33624182,594.81,593.56,5.32494992]
[1742017603721,0.3079097,594.8,593.56,5.32494992]
[1742017603926,0.33625313,594.79,593.56,5.32494992]
[1742017604126,0.3079097,594.78,593.56,5.32494992]
[1742017604328,0.33626443,594.77,593.56,5.32494992]
[1742017604523,0.3079097,594.76,593.56,5.32494992]
[1742017604924,0.30793818,594.75,593.56,5.32494992]
[1742017605130,0.30793818,594.74,593.56,5.32494992]
[1742017605427,0.30793818,594.73,593.56,5.32494992]
[1742017605628,0.30793818,594.76,593.56,5.32494992]
[1742017605829,0.30793818,594.75,593.56,5.32494992]
[1742017606030,0.30793818,594.74,593.56,5.32494992]
[1742017606231,0.30793818,594.76,593.56,5.32494992]
[1742017606531,0.30793818,594.75,593.56,5.32494992]
[1742017606731,0.30793818,594.76,593.56,4.988]
[1742017606929,0.30793818,594.77,593.56,4.988]
[1742017607127,0.30793818,594.76,593.56,4.988]
[1742017607326,0.30793818,595.2,593.56,4.988]
[1742017607533,0.29297985,594.76,593.56,4.988]
[1742017607726,0.30793818,594.75,593.56,4.988]
[1742017608031,0.30793818,594.74,593.56,4.988]
[1742017608331,0.30793818,594.73,593.56,4.988]
[1742017608633,5.021107,595.2,593.56,4.988]
[1742017608831,2.70042184,595.19,593.56,4.988]
[1742017609026,0.30793818,595.18,593.56,4.988]
[1742017609231,0.30793818,595.17,593.56,4.988]
[1742017609427,0.30793818,595.16,593.56,4.988]
[1742017609627,0.30793818,595.15,593.56,4.988]
[1742017609828,0.29294532,595.18,593.56,4.988]
[1742017609829,0.30793818,595.14,593.56,4.988]
[1742017610032,0.30793818,595.13,593.56,4.988]
[1742017610229,0.30793818,595.12,593.56,4.988]
[1742017610435,0.30791025,595.11,593.56,4.988]
[1742017610635,0.30791025,595.1,593.56,4.988]
[1742017610831,0.30791025,595.09,593.56,4.988]
[1742017611035,0.30791025,595.08,593.56,4.988]
[1742017611231,0.30791025,595.07,593.56,4.988]
[1742017611436,0.30791025,595.06,593.56,4.988]
[1742017611637,2.88149904,595.05,593.56,4.988]
[1742017612137,0.30791025,595.04,593.56,4.988]
[1742017612436,0.30791025,595.03,593.56,4.988]
[1742017612637,0.30791025,595.02,593.56,4.988]
[1742017612832,0.30791025,595.01,593.56,4.988]
[1742017613034,0.30791025,595.0,593.56,4.988]
[1742017613236,2.57358879,594.94,593.56,4.988]
[1742017613536,0.30791025,594.93,593.56,4.988]
[1742017613736,0.30791025,594.92,593.56,4.988]
[1742017613936,0.30791025,594.91,593.56,4.988]
[1742017614130,0.30791025,594.9,593.56,4.988]
[1742017614334,2.57358879,594.94,593.56,4.988]
[1742017614535,0.30791402,594.93,593.56,4.988]
[1742017614837,0.30791402,594.92,593.56,4.988]
[1742017615037,0.30791402,594.91,593.56,4.988]
[1742017615237,0.30791402,594.9,593.56,4.988]
[1742017615440,0.30791402,594.89,593.56,4.988]
[1742017615641,0.30791402,594.88,593.56,4.988]
[1742017615941,0.30791402,594.87,593.56,4.988]
[1742017616141,0.30791402,594.86,593.56,4.988]
[1742017616342,0.30791402,594.85,593.56,4.988]
[1742017616544,0.30791402,594.84,593.56,4.988]
[1742017616742,0.30791402,594.83,593.56,4.988]
[1742017616942,0.30791402,594.82,593.56,4.988]
[1742017617142,0.30791402,594.81,593.56,4.988]
[1742017617445,0.30791402,594.8,593.56,4.988]
[1742017617840,0.30791104,594.79,593.56,4.988]
[1742017618040,2.39248366,594.97,593.56,4.988]
[1742017618243,0.30788535,594.96,593.56,4.988]
[1742017618437,0.30788535,594.95,593.56,4.988]
[1742017618641,0.30788535,594.94,593.56,4.988]
[1742017618844,2.39248366,594.97,593.56,4.988]
[1742017618845,0.30788535,594.93,593.56,4.988]
[1742017619144,0.30788535,594.92,593.56,4.988]
[1742017619343,0.30788535,594.91,593.56,4.988]
[1742017619543,0.30788535,594.9,593.56,4.988]
[1742017619743,0.30788535,594.89,593.56,4.988]
[1742017619946,0.30788535,594.88,593.56,4.988]
[1742017620145,0.30788207,594.87,593.56,4.988]
[1742017620342,0.30788207,594.86,593.56,4.988]
[1742017620539,0.30788207,594.85,593.56,4.988]
[1742017620740,0.30788207,594.84,593.56,4.988]
[1742017620943,0.30788207,594.83,593.56,4.988]
[1742017621140,0.30788207,594.82,593.56,4.988]
[1742017621448,0.30788207,594.81,593.56,4.988]
[1742017621646,0.30788207,594.8,593.56,4.988]
[1742017621947,0.30788207,594.79,593.56,4.988]
[1742017622147,0.30788207,594.91,593.56,4.988]
[1742017622447,0.29298972,594.78,593.56,4.988]
[1742017622647,0.30788207,594.77,593.56,4.988]
[1742017623144,0.30788207,594.9,593.56,4.988]
[1742017623443,0.30797377,594.89,593.56,4.988]
[1742017623746,0.30797377,594.88,593.56,4.988]
[1742017623940,0.30797377,594.89,593.56,4.988]
[1742017624141,0.30797377,594.88,593.56,4.988]
[1742017624346,0.60096595,594.87,593.56,4.988]
[1742017624542,0.30797377,594.86,593.56,4.988]
[1742017625342,0.30797377,594.97,593.56,4.988]
[1742017625545,0.29299588,594.85,593.56,4.988]
[1742017625744,0.30797377,594.84,593.56,4.988]
[1742017625941,0.30797377,594.83,593.56,4.988]
[1742017626148,0.30797377,594.82,593.56,4.988]
[1742017626448,0.30797377,594.81,593.56,4.988]
[1742017626649,0.30797377,595.07,593.56,4.988]
[1742017626849,2.39151402,595.08,593.56,4.988]
[1742017627149,0.30790246,595.07,593.56,4.988]
[1742017627350,0.30790246,595.06,593.56,4.988]
[1742017627553,0.30790246,595.05,593.56,4.988]
[1742017627851,0.30790246,595.04,593.56,4.988]
[1742017628045,0.30790246,595.03,593.56,4.988]
[1742017628249,0.30790246,595.02,593.56,4.988]
[1742017628444,0.30790246,595.01,593.56,4.988]
[1742017628650,0.30790246,595.0,593.56,4.988]
[1742017628846,0.30790246,594.99,593.56,4.988]
[1742017629045,0.29298108,595.02,593.56,4.988]
[1742017629046,0.30790246,594.98,593.56,4.988]
[1742017629249,0.30790246,594.97,593.56,4.988]
[1742017629450,0.30790246,594.96,593.56,4.988]
[1742017629646,0.30790246,594.95,593.56,4.988]
[1742017629854,0.30790246,594.94,593.56,4.988]
[1742017630052,0.30790246,594.93,593.56,4.988]
[1742017630253,0.30790246,594.92,593.56,4.988]
[1742017630449,0.30790246,594.91,593.56,4.988]
[1742017630655,0.30790246,594.9,593.56,4.988]
[1742017630850,0.30790246,594.89,593.56,4.988]
[1742017631054,0.30790246,594.88,593.56,4.988]
[1742017631354,0.30790246,594.87,593.56,4.988]
[1742017631551,0.30790246,594.86,593.56,4.988]
[1742017631749,0.30790246,594.85,593.56,4.988]
[1742017631951,0.30790246,594.84,593.56,4.988]
[1742017632149,2.57358879,594.8,593.56,4.988]
[1742017632350,0.30790246,594.79,593.56,4.988]
[1742017632553,0.30790246,594.78,593.56,4.988]
[1742017632755,0.30790246,594.77,593.56,4.988]
[1742017632949,0.30790246,594.76,593.56,4.988]
[1742017633150,0.30790246,594.79,593.56,4.988]
[1742017634651,2.57358879,594.8,593.56,4.988]
[1742017634652,0.60091765,594.78,593.56,4.988]
[1742017634855,0.64416029,594.77,593.56,4.988]
[1742017635056,0.64416595,594.76,593.56,4.988]
[1742017635256,0.6441716,594.75,593.56,4.988]
[1742017635451,0.30789586,594.74,593.56,4.988]
[1742017637651,0.29302796,594.73,593.56,4.988]
[1742017637851,0.30789586,594.72,593.56,4.988]
[1742017638356,0.33629836,594.71,593.56,4.988]
[1742017638753,0.30800927,594.7,593.56,4.988]
[1742017640457,0.29302055,594.69,593.56,4.988]
[1742017640658,0.30800927,594.68,593.56,4.988]
[1742017641058,0.33632098,594.67,593.56,4.988]
[1742017641255,0.30800927,594.66,593.56,4.988]
[1742017641456,0.64433591,594.66,593.56,4.988]
[1742017641658,0.30800927,594.65,593.56,4.988]
[1742017642160,0.33632664,594.66,593.56,4.988]
[1742017642359,0.30802938,594.65,593.56,4.988]
[1742017642762,0.33632664,594.66,593.56,4.988]
[1742017643054,0.30802937,594.65,593.56,4.988]
[1742017643560,0.29302672,594.64,593.56,4.988]
[1742017643761,0.30802937,594.63,593.56,4.988]
[1742017646058,0.29302672,594.64,593.56,4.988]
[1742017646258,0.30801147,594.63,593.56,4.988]
[1742017647859,0.29302672,594.64,593.56,4.988]
[1742017648070,0.30799415,594.63,593.56,4.988]
[1742017649256,0.30799415,594.65,593.56,4.988]
[1742017649462,0.29300698,594.62,593.56,4.988]
[1742017649656,0.30799415,594.61,593.56,4.988]
[1742017651864,0.30799703,594.6,593.56,4.988]
[1742017652064,0.30799703,594.61,593.56,4.988]
[1742017652464,0.30799703,594.6,593.56,4.988]
[1742017652664,0.30799703,594.65,593.56,4.988]
[1742017652965,0.33632664,594.66,593.56,4.988]
[1742017653166,0.30799703,594.65,593.56,4.988]
[1742017655466,0.29300698,594.64,593.56,4.988]
[1742017655666,0.30799703,594.63,593.56,4.988]
[1742017657167,0.29300698,594.64,593.56,4.988]
[1742017657370,0.30800029,594.63,593.56,4.988]
[1742017659267,0.29300698,594.64,593.56,4.988]
[1742017659469,0.30798525,594.63,593.56,4.988]
[1742017661374,0.30798525,594.65,593.56,4.988]
[1742017661570,0.29300945,594.62,593.56,4.988]
[1742017661766,0.30798525,594.61,593.56,4.988]
[1742017663874,0.29300945,594.62,593.56,4.988]
[1742017667076,0.30802019,594.61,593.56,4.988]
[1742017667574,0.29301932,594.6,593.56,4.988]
[1742017668076,0.30802019,594.59,593.56,4.988]
[1742017668277,0.29301932,594.6,593.56,4.988]
[1742017669577,0.30802232,594.59,593.56,4.988]
[1742017670583,0.29302179,594.58,593.56,4.988]
[1742017673185,0.33632664,594.66,593.56,4.988]
[1742017673487,0.29301439,594.57,593.56,4.988]
[1742017673785,0.33632664,594.66,593.56,4.988]
[1742017673980,0.30801293,594.65,593.56,4.988]
[1742017674484,0.33632664,594.66,593.56,4.988]
[1742017674685,0.30801311,594.65,593.56,4.988]
[1742017675487,0.29301439,594.64,593.56,4.988]
[1742017675786,0.30801311,594.63,593.56,4.988]
[1742017676478,0.60103006,594.62,593.56,4.988]
[1742017676682,0.30801321,594.61,593.56,4.988]
[1742017677984,0.30801293,594.6,593.56,4.988]
[1742017678185,0.30801293,594.61,593.56,4.988]
[1742017678388,0.30801293,594.6,593.56,4.988]
[1742017678581,0.30801293,594.59,593.56,4.988]
[1742017678888,0.30801293,594.58,593.56,4.988]
[1742017679086,0.30801293,594.61,593.56,4.988]
[1742017679288,0.30801293,594.6,593.56,4.988]
[1742017679485,0.29301932,594.57,593.56,4.988]
[1742017679684,0.30801293,594.56,593.56,4.988]
[1742017680082,0.29301932,594.57,593.56,4.988]
[1742017680386,0.30801901,594.56,593.56,4.988]
[1742017684291,0.29301932,594.57,593.56,4.988]
[1742017685095,0.33632664,594.66,593.56,4.988]
[1742017685396,0.29301439,594.56,593.56,4.988]
[1742017685696,0.33632664,594.66,593.56,4.988]
[1742017685891,0.30802332,594.65,593.56,4.988]
[1742017687504,0.29301439,594.64,593.56,4.988]
[1742017687702,0.30802332,594.63,593.56,4.988]
[1742017688298,0.30802332,594.65,593.56,4.988]
[1742017688497,0.29301685,594.62,593.56,4.988]
[1742017688804,0.30799919,594.61,593.56,4.988]
[1742017688997,0.30799917,594.6,593.56,4.988]
[1742017689200,0.30799917,594.61,593.56,4.988]
[1742017689403,0.29301685,594.62,593.56,4.988]
[1742017689604,0.30799473,594.61,593.56,4.988]
[1742017691407,0.33632664,594.66,593.56,4.988]
[1742017691606,0.29301439,594.6,593.56,4.988]
[1742017697209,0.33632664,594.66,593.56,4.988]
[1742017697509,0.29300698,594.59,593.56,4.988]
[1742017697710,0.33632664,594.66,593.56,4.988]
[1742017698010,0.30799464,594.65,593.56,4.988]
[1742017699510,0.62934493,594.64,593.56,4.988]
[1742017699711,0.30799464,594.63,593.56,4.988]
[1742017700512,0.29303412,594.62,593.56,4.988]
[1742017700812,0.30799464,594.61,593.56,4.988]
[1742017701615,0.29303412,594.62,593.56,4.988]
[1742017706313,0.33633795,594.64,593.56,4.988]
[1742017706518,0.29300945,594.61,593.56,4.988]
[1742017709118,0.33633795,594.64,593.56,4.988]
[1742017709521,0.29293053,594.63,593.56,4.988]
[1742017710314,0.30797973,594.62,593.56,4.988]
[1742017711319,0.29293053,594.63,593.56,4.988]
[1742017712120,0.33633795,594.64,593.56,4.988]
[1742017712622,0.29291203,594.63,593.56,4.988]
[1742017718228,0.33633795,594.64,593.56,4.988]
[1742017718429,0.29298232,594.62,593.56,4.988]
[1742017721126,0.33633795,594.64,593.56,4.988]
[1742017723830,0.33633795,594.64,593.57,0.33694425]
[1742017726533,0.33633795,594.64,593.58,0.788]
[1742017726733,0.33633795,594.64,593.59,0.33693289]
[1742017726935,0.33633795,594.64,593.59,1.32493289]
[1742017727135,0.33633795,594.64,593.6,1.068]
[1742017727331,0.33633795,594.64,593.61,0.33692154]
[1742017727836,0.33633795,594.64,593.62,0.828]
[1742017728136,0.33633795,594.64,593.63,0.33691019]
[1742017738840,3.41599097,595.53,593.63,0.33691019]
[1742017739043,0.33584658,595.51,593.63,0.33691019]
[1742017739339,0.30787473,595.5,593.63,0.33691019]
[1742017739544,0.3358635,595.48,593.63,0.33691019]
[1742017739741,0.30787473,595.47,593.63,0.33691019]
[1742017739941,0.33588042,595.45,593.63,0.33691019]
[1742017740135,0.30787473,595.44,593.63,0.33691019]
[1742017740344,0.33589734,595.42,593.63,0.33691019]
[1742017740543,0.30787473,595.41,593.63,0.33691019]
[1742017740744,0.33591427,595.39,593.63,0.33691019]
[1742017740944,0.30784554,595.38,593.63,0.33691019]
[1742017741345,0.3359312,595.36,593.63,0.33691019]
[1742017741546,0.30784554,595.35,593.63,0.33691019]
[1742017742450,0.33594812,595.33,593.63,0.33691019]
[1742017742751,0.30784554,595.32,593.63,0.33691019]
[1742017743049,0.33596505,595.3,593.63,0.33691019]
[1742017743251,0.30784554,595.29,593.63,0.33691019]
[1742017743444,0.33598199,595.27,593.63,0.33691019]
[1742017743646,0.30784554,595.26,593.63,0.33691019]
[1742017743850,0.33599892,595.24,593.63,0.33691019]
[1742017744051,0.30784554,595.23,593.63,0.33691019]
[1742017744246,0.33601585,595.21,593.63,0.33691019]
[1742017744446,0.30784554,595.2,593.63,0.33691019]
[1742017744650,0.33603279,595.18,593.63,0.33691019]
[1742017744949,0.30784554,595.17,593.63,0.33691019]
[1742017745153,0.33604408,595.16,593.63,0.33691019]
[1742017745350,0.30784554,595.15,593.64,0.717]
[1742017745552,0.60071813,595.15,593.65,0.33689884]
[1742017745752,0.64390092,595.14,593.65,0.33689884]
[1742017745956,0.64390656,595.13,593.65,2.08189884]
[1742017746152,0.64391221,595.12,593.65,2.08189884]
[1742017746346,0.30784554,595.11,593.65,2.08189884]
[1742017746547,0.33607797,595.1,593.65,2.08189884]
[1742017746751,0.30784554,595.09,593.65,2.08189884]
[1742017746951,0.33608926,595.08,593.65,2.08189884]
[1742017747148,0.30784554,595.07,593.65,2.08189884]
[1742017747452,0.33610056,595.06,593.65,2.08189884]
[1742017747651,0.30784554,595.05,593.65,2.08189884]
[1742017747849,0.33611185,595.04,593.65,2.08189884]
[1742017748051,0.30784554,595.03,593.65,2.08189884]
[1742017748252,0.33612315,595.02,593.65,2.08189884]
[1742017748454,0.30784554,595.01,593.65,2.08189884]
[1742017748655,0.33613445,595.0,593.65,2.08189884]
[1742017748854,0.30784554,594.99,593.65,2.08189884]
[1742017749554,0.30784554,594.99,593.65,3.26289884]
[1742017751456,0.29288738,594.98,593.65,3.26289884]
[1742017751654,0.30784554,594.97,593.65,4.35889884]
[1742017752257,0.30784036,594.96,593.65,4.35889884]
[1742017752461,0.30784036,594.97,593.65,4.35889884]
[1742017754361,0.30784036,594.99,593.65,4.35889884]
[1742017754563,0.29288985,594.96,593.65,4.35889884]
[1742017754761,0.30784036,594.95,593.65,4.35889884]
[1742017755964,0.29288985,594.96,593.65,4.35889884]
[1742017756262,0.30784219,594.95,593.65,4.35889884]
[1742017757459,0.33613445,595.0,593.65,4.35889884]
[1742017757460,0.29289478,594.94,593.65,4.35889884]
[1742017757864,0.30784217,594.93,593.65,4.35889884]
[1742017760270,0.30784217,594.99,593.65,4.35889884]
[1742017760470,0.29289724,594.92,593.65,4.35889884]
[1742017760665,0.30784217,594.91,593.65,4.35889884]
[1742017760868,0.30784217,594.99,593.65,4.35889884]
[1742017762470,0.29288985,594.98,593.65,4.35889884]
[1742017762673,0.30784217,594.97,593.65,4.35889884]
[1742017763368,0.30784217,594.99,593.65,4.35889884]
[1742017763568,0.29289231,594.96,593.65,4.35889884]